fUST/lending_fUST_20240814
["ID","MTS","AMOUNT","RATE_DAILY","PERIOD"]
[334877972,1723624259962,-500.0,0.00014246,2]
[334877973,1723624259972,-500.0,0.00014246,2]
[334877974,1723624259982,-500.0,0.00014246,2]
[334877975,1723624259992,-706.73,0.00014246,2]
[334877976,1723624260002,-500.0,0.00014246,2]
[334877977,1723624260012,-14459.08,0.00014246,2]
[334877978,1723624260022,-505.90183879,0.00014246,2]
[334877979,1723624260031,-2184.45,0.00014246,2]
[334877980,1723624260041,-500.0,0.00014246,2]
[334877981,1723624260052,-500.0,0.00014246,2]
[334877982,1723624260062,-500.0,0.00014246,2]
[334877983,1723624260072,-505.34830515,0.00014246,2]
[334877984,1723624260082,-507.43811243,0.00014246,2]
[334877985,1723624260092,-500.0,0.00014246,2]
[334877986,1723624260102,-799.51,0.00014246,2]
[334877987,1723624260112,-498.83358341,0.00014246,2]
[334877988,1723624260122,-942.0,0.00014246,2]
[334877989,1723624260131,-500.0,0.00014246,2]
[334877990,1723624260144,-500.0,0.00014246,2]
[334877991,1723624260155,-500.0,0.00014246,2]
[334877992,1723624260167,-502.31068006,0.00014246,2]
[334877993,1723624260177,-942.62,0.00014246,2]
[334877994,1723624260186,-503.16807931,0.00014246,2]
[334877995,1723624260195,-441.98943237,0.00014246,2]
[334877996,1723624260204,-500.0,0.00014246,2]
[334877997,1723624260214,-759.11,0.00014246,2]
[334877998,1723624260223,-509.01488994,0.00014246,2]
[334877999,1723624260233,-500.0,0.00014246,2]
[334878000,1723624260242,-505.75392744,0.00014246,2]
[334878001,1723624260251,-500.0,0.00014246,2]
[334878002,1723624260262,-500.0,0.00014246,2]
[334878003,1723624260271,-507.301092,0.00014246,2]
[334878004,1723624260280,-4552.96,0.00014246,2]
[334878005,1723624260291,-500.0,0.00014246,2]
[334878006,1723624260301,-500.0,0.00014246,2]
[334878007,1723624260310,-506.08203554,0.00014246,2]
[334878008,1723624260320,-424.15123075,0.00014246,2]
[334878009,1723624260329,-3173.63,0.00014246,2]
[334878010,1723624260339,-500.0,0.00014246,2]
[334878011,1723624260350,-500.0,0.00014246,2]
[334878012,1723624260361,-500.0,0.00014246,2]
[334878013,1723624260372,-500.0,0.00014246,2]
[334878014,1723624260382,-500.0,0.00014246,2]
[334878015,1723624260392,-500.0,0.00014246,2]
[334878016,1723624260402,-500.0,0.00014246,2]
[334878017,1723624260412,-505.05136859,0.00014246,2]
[334878018,1723624260423,-500.0,0.00014246,2]
[334878019,1723624260433,-508.34125761,0.00014246,2]
[334878020,1723624260444,-500.0,0.00014246,2]
[334878021,1723624260453,-500.0,0.00014246,2]
[334878022,1723624260463,-517.24373286,0.00014246,2]
[334878023,1723624260473,-580.14887794,0.00014246,2]
[334878024,1723624260483,-500.0,0.00014246,2]
[334878025,1723624260492,-777.25,0.00014246,2]
[334878026,1723624260504,-503.81868569,0.00014246,2]
[334878027,1723624260514,-500.0,0.00014246,2]
[334878028,1723624260524,-647.32,0.00014246,2]
[334878029,1723624260534,-976.14,0.00014246,2]
[334878030,1723624260544,-500.0,0.00014246,2]
[334878031,1723624260555,-485.00914447,0.00014246,2]
[334878032,1723624260566,-504.99563882,0.00014246,2]
[334878033,1723624260576,-500.0,0.00014246,2]
[334878034,1723624260586,-4968.35,0.00014246,2]
[334878035,1723624260595,-500.0,0.00014246,2]
[334878036,1723624260605,-500.0,0.00014246,2]
[334878037,1723624260616,-1028.65,0.00014246,2]
[334878038,1723624260628,-500.0,0.00014246,2]
[334878039,1723624260638,-375.42649255,0.00014246,2]
[334878040,1723624260652,-504.75162347,0.00014246,2]
[334878041,1723624260662,-507.60738411,0.00014246,2]
[334878042,1723624260672,-505.93321847,0.00014246,2]
[334878043,1723624260682,-500.0,0.00014246,2]
[334878044,1723624260692,-1429.54,0.00014246,2]
[334878045,1723624260702,-500.0,0.00014246,2]
[334878046,1723624260714,-1070.11,0.00014246,2]
[334878047,1723624260727,-500.0,0.00014246,2]
[334878048,1723624260736,-500.0,0.00014246,2]
[334878049,1723624260746,-232.035128,0.00014247,2]
[334878050,1723624260756,-517.964872,0.00014247,2]
[334878051,1723624260767,-222.651869,0.0001428,2]
[334878052,1723624260778,-193.608411,0.0001428,2]
[334878053,1723624260788,-184.050922,0.00014338,2]
[334878054,1723624260798,-465.02852774,0.0001435,2]
[334878055,1723624260809,-1000.0,0.0001441,2]
[334878056,1723624260819,-222.651869,0.00014456,2]
[334878057,1723624260828,-193.608411,0.00014456,2]
[334878058,1723624260838,-163.741697,0.00014456,2]
[334878059,1723624260847,-500.50490688,0.0001452,2]
[334878060,1723624260857,-500.0,0.0001452,2]
[334878061,1723624260867,-500.0,0.0001452,2]
[334878062,1723624260877,-500.0,0.0001452,2]
[334878063,1723624260886,-500.0,0.0001452,2]
[334878064,1723624260897,-500.0,0.0001452,2]
[334878065,1723624260906,-500.0,0.0001452,2]
[334878066,1723624260916,-500.0,0.0001452,2]
[334878067,1723624260927,-504.59089689,0.0001452,2]
[334878068,1723624260938,-500.0,0.0001452,2]
[334878069,1723624260949,-500.0,0.0001452,2]
[334878070,1723624260959,-626.7496748,0.0001452,2]
[334878071,1723624260969,-500.0,0.0001452,2]
[334878072,1723624260980,-500.0,0.0001452,2]
[334878073,1723624260993,-500.0,0.0001452,2]
[334878074,1723624261084,-503.78076457,0.0001452,2]
[334878075,1723624261103,-500.0,0.0001452,2]
[334878076,1723624261114,-636.73,0.0001452,2]
[334878077,1723624261123,-515.68965807,0.0001452,2]
[334878078,1723624261135,-500.0,0.0001452,2]
[334878079,1723624261147,-500.0,0.0001452,2]
[334878080,1723624261157,-506.98584995,0.0001452,2]
[334878081,1723624261167,-500.0,0.0001452,2]
[334878082,1723624261178,-500.0,0.0001452,2]
[334878083,1723624261190,-507.81058558,0.0001452,2]
[334878084,1723624261199,-500.0,0.0001452,2]
[334878085,1723624261209,-500.0,0.0001452,2]
[334878086,1723624261218,-508.06665224,0.0001452,2]
[334878087,1723624261227,-1693.32,0.0001452,2]
[334878088,1723624261236,-274.217258,0.0001452,2]
[334878089,1723624261247,-500.0,0.0001452,2]
[334878090,1723624261258,-500.0,0.0001452,2]
[334878091,1723624261268,-500.0,0.0001452,2]
[334878092,1723624261279,-500.0,0.0001452,2]
[334878093,1723624261290,-500.0,0.0001452,2]
[334878094,1723624261302,-500.0,0.0001452,2]
[334878095,1723624261314,-505.15140336,0.0001452,2]
[334878096,1723624261324,-506.179735,0.0001452,2]
[334878097,1723624261334,-500.0,0.0001452,2]
[334878098,1723624261343,-518.70054048,0.0001452,2]
[334878099,1723624261353,-506.41919419,0.0001452,2]
[334878100,1723624261362,-500.0,0.0001452,2]
[334878101,1723624261371,-500.0,0.0001452,2]
[334878102,1723624261380,-329.58930782,0.0001452,2]
[334878103,1723624261391,-500.0,0.0001452,2]
[334878104,1723624261402,-503.02974776,0.0001452,2]
[334878105,1723624261413,-500.0,0.0001452,2]
[334878106,1723624261424,-500.0,0.0001452,2]
[334878107,1723624261435,-507.00709407,0.0001452,2]
[334878108,1723624261447,-500.0,0.0001452,2]
[334878109,1723624261456,-500.0,0.0001452,2]
[334878110,1723624261468,-500.0,0.0001452,2]
[334878111,1723624261478,-500.0,0.0001452,2]
[334878112,1723624261489,-500.0,0.0001452,2]
[334878113,1723624261498,-500.0,0.0001452,2]
[334878114,1723624261508,-500.0,0.0001452,2]
[334878115,1723624261517,-500.0,0.0001452,2]
[334878116,1723624261526,-506.90750939,0.0001452,2]
[334878117,1723624261536,-506.34945328,0.0001452,2]
[334878118,1723624261546,-500.0,0.0001452,2]
[334878119,1723624261555,-500.0,0.0001452,2]
[334878120,1723624261567,-507.61809071,0.0001452,2]
[334878121,1723624261578,-500.0,0.0001452,2]
[334878122,1723624261588,-586.95,0.0001452,2]
[334878123,1723624261599,-500.0,0.0001452,2]
[334878124,1723624261610,-500.0,0.0001452,2]
[334878125,1723624261621,-500.0,0.0001452,2]
[334878126,1723624261631,-501.71579286,0.0001452,2]
[334878127,1723624261643,-499.99715957,0.0001452,2]
[334878128,1723624261653,-507.99856894,0.0001452,2]
[334878129,1723624261662,-511.14735694,0.0001452,2]
[334878130,1723624261671,-500.0,0.0001452,2]
[334878131,1723624261681,-559.11588219,0.0001452,2]
[334878132,1723624261692,-500.0,0.0001452,2]
[334878133,1723624261702,-2744.575246,0.0001452,2]
[334878134,1723624261714,-507.00853199,0.0001452,2]
[334878135,1723624261727,-500.0,0.0001452,2]
[334878136,1723624261738,-500.0,0.0001452,2]
[334878137,1723624261749,-521.31,0.0001452,2]
[334878138,1723624261759,-500.0,0.0001452,2]
[334878139,1723624261769,-500.0,0.0001452,2]
[334878140,1723624261780,-289.758776,0.0001452,2]
[334878141,1723624261790,-289.758786,0.0001452,2]
[334878142,1723624261801,-500.0,0.0001452,2]
[334878143,1723624261812,-512.51508889,0.0001452,2]
[334878144,1723624261822,-560.63895365,0.0001452,2]
[334878145,1723624261834,-500.0,0.0001452,2]
[334878146,1723624261847,-394.63625334,0.0001452,2]
[334878147,1723624261858,-521.87205657,0.0001452,2]
[334878148,1723624261868,-500.0,0.0001452,2]
[334878149,1723624261878,-508.92033763,0.0001452,2]
[334878150,1723624261889,-590.62330183,0.0001452,2]
[334878151,1723624261899,-500.0,0.0001452,2]
[334878152,1723624261911,-500.0,0.0001452,2]
[334878153,1723624261921,-508.21369679,0.0001452,2]
[334878154,1723624261933,-500.0,0.0001452,2]
[334878155,1723624261943,-500.0,0.0001452,2]
[334878156,1723624261955,-507.86032419,0.0001452,2]
[334878157,1723624261965,-527.1749317,0.0001452,2]
[334878158,1723624261974,-518.39118165,0.0001452,2]
[334878159,1723624261984,-342.28150176,0.0001452,2]
[334878160,1723624261993,-500.0,0.0001452,2]
[334878161,1723624262002,-500.0,0.0001452,2]
[334878162,1723624262011,-505.60398639,0.0001452,2]
[334878163,1723624262020,-746.88,0.0001452,2]
[334878164,1723624262029,-500.0,0.0001452,2]
[334878165,1723624262038,-720.49,0.0001452,2]
[334878166,1723624262049,-507.78093284,0.0001452,2]
[334878167,1723624262059,-233.12878964,0.0001452,2]
[334878168,1723624262071,-507.57414462,0.0001452,2]
[334878169,1723624262081,-500.0,0.0001452,2]
[334878170,1723624262092,-879.15,0.0001452,2]
[334878171,1723624262103,-503.45,0.0001452,2]
[334878172,1723624262113,-507.01120118,0.0001452,2]
[334878173,1723624262123,-500.0,0.0001452,2]
[334878174,1723624262132,-1225.7,0.0001452,2]
[334878175,1723624262142,-500.0,0.0001452,2]
[334878176,1723624262153,-500.0,0.0001452,2]
[334878177,1723624262163,-1110.32,0.0001452,2]
[334878178,1723624262174,-336.64856421,0.0001452,2]
[334878179,1723624262184,-507.50188352,0.0001452,2]
[334878180,1723624262195,-500.0,0.0001452,2]
[334878181,1723624262205,-500.0,0.0001452,2]
[334878182,1723624262215,-500.0,0.0001452,2]
[334878183,1723624262227,-505.11736317,0.0001452,2]
[334878184,1723624262237,-609.96,0.0001452,2]
[334878185,1723624262248,-667.18,0.0001452,2]
[334878186,1723624262260,-524.77967441,0.0001452,2]
[334878187,1723624262271,-513.27,0.0001452,2]
[334878188,1723624262282,-500.0,0.0001452,2]
[334878189,1723624262292,-500.0,0.0001452,2]
[334878190,1723624262302,-506.66958703,0.0001452,2]
[334878191,1723624262314,-500.0,0.0001452,2]
[334878192,1723624262323,-500.0,0.0001452,2]
[334878193,1723624262334,-500.0,0.0001452,2]
[334878194,1723624262345,-502.57630284,0.0001452,2]
[334878195,1723624262355,-506.18295433,0.0001452,2]
[334878196,1723624262365,-500.0,0.0001452,2]
[334878197,1723624262375,-509.44618793,0.0001452,2]
[334878198,1723624262386,-512.20070473,0.0001452,2]
[334878199,1723624262398,-500.0,0.0001452,2]
[334878200,1723624262409,-505.49730584,0.0001452,2]
[334878201,1723624262418,-500.0,0.0001452,2]
[334878202,1723624262427,-500.0,0.0001452,2]
[334878203,1723624262436,-687.75,0.0001452,2]
[334878204,1723624262445,-507.14496494,0.0001452,2]
[334878205,1723624262454,-518.16872683,0.0001452,2]
[334878206,1723624262465,-789.68,0.0001452,2]
[334878207,1723624262476,-508.40384045,0.0001452,2]
[334878208,1723624262486,-500.0,0.0001452,2]
[334878209,1723624262496,-508.18614126,0.0001452,2]
[334878210,1723624262507,-500.0,0.0001452,2]
[334878211,1723624262517,-507.81619924,0.0001452,2]
[334878212,1723624262526,-725.88,0.0001452,2]
[334878213,1723624262537,-505.5,0.0001452,2]
[334878214,1723624262547,-507.86131679,0.0001452,2]
[334878215,1723624262559,-1061.69,0.0001452,2]
[334878216,1723624262569,-500.0,0.0001452,2]
[334878217,1723624262580,-1984.74,0.0001452,2]
[334878218,1723624262590,-596.9,0.0001452,2]
[334878219,1723624262600,-500.0,0.0001452,2]
[334878220,1723624262609,-500.0,0.0001452,2]
[334878221,1723624262618,-516.24,0.0001452,2]
[334878222,1723624262628,-863.21,0.0001452,2]
[334878223,1723624262644,-500.0,0.0001452,2]
[334878224,1723624262654,-500.0,0.0001452,2]
[334878225,1723624262664,-500.0,0.0001452,2]
[334878226,1723624262673,-594.2,0.0001452,2]
[334878227,1723624262684,-500.0,0.0001452,2]
[334878228,1723624262698,-500.0,0.0001452,2]
[334878229,1723624262708,-502.04033354,0.0001452,2]
[334878230,1723624262721,-500.0,0.0001452,2]
[334878231,1723624262735,-770.78,0.0001452,2]
[334878232,1723624262747,-500.0,0.0001452,2]
[334878233,1723624262758,-500.0,0.0001452,2]
[334878234,1723624262769,-500.0,0.0001452,2]
[334878235,1723624262781,-706.73,0.0001452,2]
[334878236,1723624262792,-14459.08,0.0001452,2]
[334878237,1723624262802,-500.0,0.0001452,2]
[334878238,1723624262812,-2184.45,0.0001452,2]
[334878239,1723624262821,-500.0,0.0001452,2]
[334878240,1723624262833,-500.0,0.0001452,2]
[334878241,1723624262843,-500.0,0.0001452,2]
[334878242,1723624262855,-500.0,0.0001452,2]
[334878243,1723624262866,-799.51,0.0001452,2]
[334878244,1723624262876,-942.0,0.0001452,2]
[334878245,1723624262885,-507.15467518,0.0001452,2]
[334878246,1723624262895,-500.0,0.0001452,2]
[334878247,1723624262905,-500.0,0.0001452,2]
[334878248,1723624262914,-942.62,0.0001452,2]
[334878249,1723624262924,-500.0,0.0001452,2]
[334878250,1723624262933,-759.11,0.0001452,2]
[334878251,1723624262942,-356.82986889,0.0001452,2]
[334878252,1723624262951,-507.2447329,0.0001452,2]
[334878253,1723624262960,-500.0,0.0001452,2]
[334878254,1723624262970,-4552.96,0.0001452,2]
[334878255,1723624262980,-500.0,0.0001452,2]
[334878256,1723624262989,-500.0,0.0001452,2]
[334878257,1723624263001,-3173.63,0.0001452,2]
[334878258,1723624263010,-500.0,0.0001452,2]
[334878259,1723624263020,-511.39849435,0.0001452,2]
[334878260,1723624263031,-500.0,0.0001452,2]
[334878261,1723624263041,-500.0,0.0001452,2]
[334878262,1723624263050,-506.29888616,0.0001452,2]
[334878263,1723624263061,-507.1729502,0.0001452,2]
[334878264,1723624263071,-500.0,0.0001452,2]
[334878265,1723624263081,-500.0,0.0001452,2]
[334878266,1723624263091,-500.0,0.0001452,2]
[334878267,1723624263101,-509.22499104,0.0001452,2]
[334878268,1723624263112,-500.0,0.0001452,2]
[334878269,1723624263121,-777.25,0.0001452,2]
[334878270,1723624263131,-500.0,0.0001452,2]
[334878271,1723624263142,-647.32,0.0001452,2]
[334878272,1723624263152,-976.14,0.0001452,2]
[334878273,1723624263162,-602.8282725,0.0001452,2]
[334878274,1723624263171,-500.0,0.0001452,2]
[334878275,1723624263181,-4968.35,0.0001452,2]
[334878276,1723624263191,-512.85045525,0.0001452,2]
[334878277,1723624263201,-500.0,0.0001452,2]
[334878278,1723624263211,-1028.65,0.0001452,2]
[334878279,1723624263312,-500.0,0.0001452,2]
[334878280,1723624263323,-508.02780981,0.0001452,2]
[334878281,1723624263333,-1429.54,0.0001452,2]
[334878282,1723624263344,-508.39238803,0.0001452,2]
[334878283,1723624263354,-1070.11,0.0001452,2]
[334878284,1723624263364,-500.0,0.0001452,2]
[334878285,1723624263373,-184.050922,0.00014573,2]
[334878286,1723624263382,-222.651869,0.00014632,2]
[334878287,1723624263392,-193.608411,0.00014632,2]
[334878288,1723624263402,-1000.0,0.00014684,2]
[334878289,1723624263413,-2097.40252988,0.0001469,2]
[334878290,1723624263423,-1364.96489753,0.0001469,2]
[334878291,1723624263434,-154.79103211,0.0001469,2]
[334878292,1723624263445,-194.79981105,0.0001469,2]
[334878293,1723624263455,-336.64263509,0.0001469,2]
[334878294,1723624263465,-222.651871,0.00014794,2]
[334878295,1723624263475,-178.121495,0.00014794,2]
[334878296,1723624263484,-193.608412,0.00014794,2]
[334878297,1723624263494,-167.74534,0.00014794,2]
[334878298,1723624263505,-504.52355446,0.00014794,2]
[334878299,1723624263515,-507.29039173,0.00014794,2]
[334878300,1723624263524,-509.78776944,0.00014794,2]
[334878301,1723624263534,-500.0,0.00014794,2]
[334878302,1723624263543,-511.21376885,0.00014794,2]
[334878303,1723624263553,-500.0,0.00014794,2]
[334878304,1723624263562,-500.0,0.00014794,2]
[334878305,1723624263572,-510.56873589,0.00014794,2]
[334878306,1723624263582,-500.0,0.00014794,2]
[334878307,1723624263593,-500.0,0.00014794,2]
[334878308,1723624263602,-501.51844714,0.00014794,2]
[334878309,1723624263614,-507.65910831,0.00014794,2]
[334878310,1723624263624,-500.0,0.00014794,2]
[334878311,1723624263634,-636.73,0.00014794,2]
[334878312,1723624263647,-500.0,0.00014794,2]
[334878313,1723624263656,-152.52161224,0.00014794,2]
[334878314,1723624263666,-500.0,0.00014794,2]
[334878315,1723624263676,-500.0,0.00014794,2]
[334878316,1723624263687,-506.48910942,0.00014794,2]
[334878317,1723624263696,-500.0,0.00014794,2]
[334878318,1723624263706,-1693.32,0.00014794,2]
[334878319,1723624263716,-500.0,0.00014794,2]
[334878320,1723624263726,-555.00436429,0.00014794,2]
[334878321,1723624263737,-504.25724772,0.00014794,2]
[334878322,1723624263747,-553.05237289,0.00014794,2]
[334878323,1723624263757,-202.02022492,0.00014794,2]
[334878324,1723624263767,-500.0,0.00014794,2]
[334878325,1723624263777,-486.00879072,0.00014794,2]
[334878326,1723624263788,-510.9917078,0.00014794,2]
[334878327,1723624263799,-501.70234172,0.00014794,2]
[334878328,1723624263809,-507.05018205,0.00014794,2]
[334878329,1723624263818,-500.0,0.00014794,2]
[334878330,1723624263829,-500.0,0.00014794,2]
[334878331,1723624263840,-507.92007009,0.00014794,2]
[334878332,1723624263850,-550.01309155,0.00014794,2]
[334878333,1723624263860,-500.0,0.00014794,2]
[334878334,1723624263870,-372.16752522,0.00014794,2]
[334878335,1723624263880,-500.0,0.00014794,2]
[334878336,1723624263890,-444.59818979,0.00014794,2]
[334878337,1723624263901,-500.0,0.00014794,2]
[334878338,1723624263911,-500.0,0.00014794,2]
[334878339,1723624263921,-516.87368999,0.00014794,2]
[334878340,1723624263931,-500.0,0.00014794,2]
[334878341,1723624263942,-500.0,0.00014794,2]
[334878342,1723624263951,-586.95,0.00014794,2]
[334878343,1723624263961,-500.0,0.00014794,2]
[334878344,1723624263971,-508.20831117,0.00014794,2]
[334878345,1723624263981,-509.89254846,0.00014794,2]
[334878346,1723624263991,-500.0,0.00014794,2]
[334878347,1723624264000,-500.0,0.00014794,2]
[334878348,1723624264010,-500.0,0.00014794,2]
[334878349,1723624264019,-500.0,0.00014794,2]
[334878350,1723624264028,-521.31,0.00014794,2]
[334878351,1723624264037,-500.0,0.00014794,2]
[334878352,1723624264047,-500.0,0.00014794,2]
[334878353,1723624264056,-397.10527567,0.00014794,2]
[334878354,1723624264066,-500.0,0.00014794,2]
[334878355,1723624264075,-500.0,0.00014794,2]
[334878356,1723624264084,-500.0,0.00014794,2]
[334878357,1723624264094,-500.0,0.00014794,2]
[334878358,1723624264105,-389.51312671,0.00014794,2]
[334878359,1723624264115,-500.0,0.00014794,2]
[334878360,1723624264125,-421.80783216,0.00014794,2]
[334878361,1723624264135,-500.0,0.00014794,2]
[334878362,1723624264146,-746.88,0.00014794,2]
[334878363,1723624264156,-500.0,0.00014794,2]
[334878364,1723624264165,-720.49,0.00014794,2]
[334878365,1723624264174,-500.0,0.00014794,2]
[334878366,1723624264185,-879.15,0.00014794,2]
[334878367,1723624264196,-503.45,0.00014794,2]
[334878368,1723624264206,-509.09467316,0.00014794,2]
[334878369,1723624264216,-1225.7,0.00014794,2]
[334878370,1723624264225,-500.0,0.00014794,2]
[334878371,1723624264237,-500.0,0.00014794,2]
[334878372,1723624264247,-1110.32,0.00014794,2]
[334878373,1723624264258,-478.66878333,0.00014794,2]
[334878374,1723624264268,-510.51254175,0.00014794,2]
[334878375,1723624264279,-500.0,0.00014794,2]
[334878376,1723624264290,-609.96,0.00014794,2]
[334878377,1723624264299,-667.18,0.00014794,2]
[334878378,1723624264310,-513.27,0.00014794,2]
[334878379,1723624264320,-209.14396083,0.00014794,2]
[334878380,1723624264329,-209.2010022,0.00014794,2]
[334878381,1723624264341,-507.77198338,0.00014794,2]
[334878382,1723624264350,-509.58904527,0.00014794,2]
[334878383,1723624264360,-500.0,0.00014794,2]
[334878384,1723624264369,-500.0,0.00014794,2]
[334878385,1723624264378,-500.0,0.00014794,2]
[334878386,1723624264388,-578.20529404,0.00014794,2]
[334878387,1723624264400,-500.0,0.00014794,2]
[334878388,1723624264410,-687.75,0.00014794,2]
[334878389,1723624264421,-789.68,0.00014794,2]
[334878390,1723624264431,-500.0,0.00014794,2]
[334878391,1723624264442,-500.0,0.00014794,2]
[334878392,1723624264453,-725.88,0.00014794,2]
[334878393,1723624264463,-1061.69,0.00014794,2]
[334878394,1723624264473,-500.0,0.00014794,2]
[334878395,1723624264484,-1984.74,0.00014794,2]
[334878396,1723624264494,-596.9,0.00014794,2]
[334878397,1723624264506,-512.5771374,0.00014794,2]
[334878398,1723624264516,-500.0,0.00014794,2]
[334878399,1723624264526,-516.24,0.00014794,2]
[334878400,1723624264536,-863.21,0.00014794,2]
[334878401,1723624264547,-500.0,0.00014794,2]
[334878402,1723624264558,-504.87622052,0.00014794,2]
[334878403,1723624264567,-500.0,0.00014794,2]
[334878404,1723624264577,-594.2,0.00014794,2]
[334878405,1723624264586,-500.0,0.00014794,2]
[334878406,1723624264596,-500.0,0.00014794,2]
[334878407,1723624264606,-770.78,0.00014794,2]
[334878408,1723624264615,-500.0,0.00014794,2]
[334878409,1723624264624,-546.51468707,0.00014794,2]
[334878410,1723624264635,-504.39364196,0.00014794,2]
[334878411,1723624264651,-706.73,0.00014794,2]
[334878412,1723624264661,-14459.08,0.00014794,2]
[334878413,1723624264670,-500.0,0.00014794,2]
[334878414,1723624264680,-2184.45,0.00014794,2]
[334878415,1723624264693,-508.42738621,0.00014794,2]
[334878416,1723624264704,-545.04631556,0.00014794,2]
[334878417,1723624264715,-500.0,0.00014794,2]
[334878418,1723624264726,-500.0,0.00014794,2]
[334878419,1723624264736,-799.51,0.00014794,2]
[334878420,1723624264746,-942.0,0.00014794,2]
[334878421,1723624264757,-501.4902127,0.00014794,2]
[334878422,1723624264767,-500.0,0.00014794,2]
[334878423,1723624264778,-942.62,0.00014794,2]
[334878424,1723624264789,-511.96731237,0.00014794,2]
[334878425,1723624264798,-759.11,0.00014794,2]
[334878426,1723624264810,-500.0,0.00014794,2]
[334878427,1723624264821,-4552.96,0.00014794,2]
[334878428,1723624264832,-520.27175887,0.00014794,2]
[334878429,1723624264842,-500.0,0.00014794,2]
[334878430,1723624264853,-3173.63,0.00014794,2]
[334878431,1723624264862,-500.0,0.00014794,2]
[334878432,1723624264872,-500.0,0.00014794,2]
[334878433,1723624264881,-500.0,0.00014794,2]
[334878434,1723624264892,-500.0,0.00014794,2]
[334878435,1723624264903,-500.0,0.00014794,2]
[334878436,1723624264916,-500.0,0.00014794,2]
[334878437,1723624264926,-500.0,0.00014794,2]
[334878438,1723624264935,-777.25,0.00014794,2]
[334878439,1723624264944,-500.0,0.00014794,2]
[334878440,1723624264953,-647.32,0.00014794,2]
[334878441,1723624264963,-976.14,0.00014794,2]
[334878442,1723624264972,-500.0,0.00014794,2]
[334878443,1723624264982,-4968.35,0.00014794,2]
[334878444,1723624264990,-500.0,0.00014794,2]
[334878445,1723624265000,-1028.65,0.00014794,2]
[334878446,1723624265011,-500.0,0.00014794,2]
[334878447,1723624265023,-1429.54,0.00014794,2]
[334878448,1723624265033,-1070.11,0.00014794,2]
[334878449,1723624265042,-222.651869,0.00014809,2]
[334878450,1723624265052,-193.608411,0.00014809,2]
[334878451,1723624265061,-163.741697,0.00014809,2]
[334878452,1723624265070,-179.541332,0.00014809,2]
[334878453,1723624265079,-173.834978,0.00014809,2]
[334878454,1723624265089,-184.050922,0.00014809,2]
[334878455,1723624265098,-5112.96213512,0.000149,7]
[334878456,1723624265107,-1000.0,0.00014958,2]
[334878457,1723624265117,-178.121495,0.00014979,2]
[334878458,1723624265126,-193.608412,0.00014979,2]
[334878459,1723624265135,-154.77557542,0.00014999,2]
[334878460,1723624265146,-2852.7407087,0.00015,2]
[334878461,1723624265156,-1828.93658366,0.00015,2]
[334878462,1723624265165,-1561.03266247,0.00015,2]
[334878463,1723624265174,-1110.12328868,0.00015,2]
[334878464,1723624265183,-179.76679732,0.00015,2]
[334878465,1723624265193,-460.41756705,0.00015,4]
[334878466,1723624265203,-400.17755878,0.00015042,2]
[334878467,1723624265287,-400.0,0.00015042,2]
[334878468,1723624265306,-2754.60630629,0.00015068,2]
[334878469,1723624265316,-500.0,0.00015068,2]
[334878470,1723624265325,-500.0,0.00015068,2]
[334878471,1723624265335,-326.31207589,0.00015068,2]